bitfinex/quotes_ETHUSD_20250329
["timestamp","ask_amount","ask_price","bid_price","bid_amount"]
[1743247783629,1.5318,1854.4,1854.0,5.39366]
[1743247783848,1.5318,1854.4,1853.9,6.472826]
[1743247784001,1.5318,1854.4,1853.8,5.39415]
[1743247784206,1.5318,1854.4,1853.7,5.9341]
[1743247784416,1.5318,1854.4,1853.8,5.39431]
[1743247784615,1.5318,1854.4,1853.7,11.32856]
[1743247784937,1.5318,1854.4,1853.7,0.53949]
[1743247784938,6.92445,1854.4,1853.7,0.53949]
[1743247785309,6.92445,1854.4,1853.7,5.93397]
[1743247785509,6.92445,1854.4,1853.8,0.593397]
[1743247785834,6.92445,1854.4,1853.7,5.93397]
[1743247786040,1.5318,1854.4,1853.7,11.32845]
[1743247786345,1.5318,1854.4,1854.0,5.39359]
[1743247786537,1.5318,1854.4,1854.1,10.78671]
[1743247786732,1.5318,1854.4,1853.9,5.3938]
[1743247786938,1.5318,1854.4,1853.7,0.53949]
[1743247786939,1.5318,1854.4,1853.7,5.3946]
[1743247787238,1.5318,1854.4,1853.8,5.39432]
[1743247787433,1.5318,1854.4,1853.9,0.05393072]
[1743247787648,1.5318,1854.4,1853.9,5.39402]
[1743247788326,1.5318,1854.4,1853.8,5.39412]
[1743247789041,1.5318,1854.4,1853.8,5.39432]
[1743247789245,1.5318,1854.4,1853.8,6.532657]
[1743247789444,1.5318,1854.4,1853.8,6.532437]
[1743247789936,1.5318,1854.4,1853.8,5.3941]
[1743247790835,1.5318,1854.4,1853.8,10.78824]
[1743247791039,1.5318,1854.4,1853.8,10.7882]
[1743247791348,1.5318,1854.4,1853.8,5.3941]
[1743247791643,1.5318,1854.4,1853.8,10.78828]
[1743247791962,1.5318,1854.4,1853.9,0.55]
[1743247792148,1.612,1854.7,1854.4,5.39236]
[1743247792310,1.612,1854.7,1854.5,5.44591642]
[1743247792717,9.23,1855.1,1854.5,5.44591642]
[1743247792919,9.216,1855.1,1854.7,5.39154]
[1743247793745,1.612,1855.1,1854.8,5.39131]
[1743247793950,1.612,1855.1,1854.8,5.44521572]
[1743247794247,1.612,1855.1,1854.7,5.39155]
[1743247794454,1.612,1855.1,1854.7,10.78313]
[1743247794747,1.612,1855.1,1854.7,5.39155]
[1743247795856,1.612,1855.1,1854.5,5.39217]
[1743247796548,1.612,1855.1,1854.6,0.05391227]
[1743247796748,1.612,1855.1,1854.8,5.39127]
[1743247796941,1.612,1855.1,1854.7,5.39169]
[1743247797137,1.612,1855.1,1854.6,5.39183]
[1743247797552,1.612,1855.1,1854.7,5.39167]
[1743247797931,1.612,1855.1,1854.6,5.39183]
[1743247798655,1.612,1855.1,1854.7,0.05390956]
[1743247798851,1.612,1855.1,1854.6,5.39183]
[1743247799257,1.612,1855.1,1854.7,5.39165]
[1743247799427,1.612,1855.1,1854.8,5.39134]
[1743247800477,0.1097775,1855.2,1855.1,5.39054]
[1743247800767,0.1097775,1855.2,1854.6,1.5639]
[1743247801059,1.7217775,1855.2,1854.6,5.39188]
[1743247801264,1.7217775,1855.2,1854.6,5.39187]
[1743247801426,1.7217775,1855.2,1854.7,5.39157]
[1743247802032,1.7217775,1855.2,1854.6,5.39178]
[1743247802234,7.1120475,1855.2,1854.5,5.39227]
[1743247802640,8.82915131,1854.9,1854.2,5.39287]
[1743247802845,7.433,1854.8,1854.4,5.39233]
[1743247803138,1.612,1855.0,1854.7,5.39155]
[1743247803460,1.612,1855.0,1854.8,5.39125]
[1743247803655,1.612,1855.0,1854.8,0.05390865]
[1743247804773,1.612,1855.0,1854.8,5.44522865]
[1743247804963,1.612,1855.0,1854.8,5.44520865]
[1743247805869,1.612,1855.0,1854.8,0.05390865]
[1743247806261,1.612,1855.0,1854.4,5.39244]
[1743247806473,1.612,1855.0,1854.3,5.39264]
[1743247806666,1.612,1855.0,1854.4,5.44638739]
[1743247806867,1.612,1855.0,1854.6,5.39193]
[1743247807071,1.612,1855.0,1854.7,0.05391124]
[1743247807367,1.612,1855.0,1854.6,5.39185]
[1743247807901,1.612,1855.0,1854.7,5.44543984]
[1743247808358,1.612,1855.0,1854.8,5.39127]
[1743247808681,1.612,1855.0,1854.7,5.39153]
[1743247808992,1.612,1855.0,1854.6,5.39199]
[1743247809179,1.612,1855.0,1854.3,5.39286]
[1743247809381,1.612,1855.0,1854.4,5.4464773]
[1743247809583,7.0029,1855.0,1854.3,5.932026]
[1743247809879,5.39114,1854.9,1854.3,5.39274]
[1743247810091,1.612,1855.0,1854.4,5.4462313]
[1743247810281,1.612,1855.0,1854.2,5.39294]
[1743247810282,9.24050883,1854.9,1854.2,5.39294]
[1743247810451,8.23705088,1854.8,1854.2,5.39294]
[1743247810646,7.313,1854.8,1854.2,5.39294]
[1743247811121,12.70452,1854.8,1854.1,5.39344]
[1743247811283,1.6398,1854.7,1854.1,5.39344]
[1743247811483,1.6398,1854.7,1854.2,5.39313]
[1743247812087,1.6398,1854.7,1854.1,5.39344]
[1743247812585,1.6398,1854.7,1854.1,5.39324]
[1743247812773,1.6398,1854.7,1854.1,10.78656]
[1743247812971,1.6398,1854.7,1854.2,5.39298]
[1743247813280,1.6398,1854.7,1854.1,5.39344]
[1743247813673,1.6398,1854.7,1854.1,5.44736893]
[1743247813892,1.6398,1854.7,1853.7,36.93336]
[1743247813893,3.074223,1854.7,1853.8,5.39413]
[1743247814095,1.6398,1854.4,1853.8,5.39411]
[1743247814341,1.6398,1854.4,1853.3,1.5399]
[1743247814342,1.6398,1854.4,1853.9,5.39378]
[1743247814497,1.6398,1854.4,1853.9,5.39379]
[1743247814677,1.6398,1854.4,1854.2,5.39309]
[1743247814873,1.6398,1854.4,1853.9,0.539379]
[1743247815099,1.6398,1854.4,1854.0,5.39356]
[1743247815292,1.6398,1854.4,1854.0,10.7871]
[1743247815625,0.55,1854.2,1854.0,10.78716]
[1743247815787,0.55,1854.2,1854.1,5.39345]
[1743247816313,0.55,1854.2,1854.0,11.9197939]
[1743247816500,0.55,1854.2,1853.9,5.933289]
[1743247816908,0.55,1854.2,1853.8,5.39432]
[1743247817106,1.6398,1854.1,1853.8,5.39432]
[1743247817313,1.6398,1854.1,1853.7,10.78922]
[1743247817648,1.6398,1854.1,1853.7,5.39447]
[1743247818231,1.6398,1854.1,1853.6,10.78949]
[1743247818527,1.6398,1854.1,1853.8,5.39412]
[1743247818915,1.6398,1854.1,1853.7,5.39461]
[1743247819118,1.6398,1854.1,1853.6,5.39485]
[1743247819321,0.55,1854.2,1854.1,5.39345]
[1743247819519,0.55,1854.2,1853.8,5.39405]
[1743247820044,0.55,1854.2,1853.8,5.44798665]
[1743247820241,0.55,1854.2,1854.0,5.39371]
[1743247820447,0.55,1854.2,1853.8,11.87259866]
[1743247820649,0.55,1854.2,1853.8,11.87240866]
[1743247821145,0.55,1854.2,1853.7,5.39459]
[1743247821320,0.55,1854.2,1853.6,5.39471]
[1743247821516,3.01857091,1854.1,1853.6,5.39487]
[1743247821706,3.01857091,1854.1,1853.5,10.79023]
[1743247822047,3.01857091,1854.0,1853.5,5.39504]
[1743247822449,1.5314,1853.9,1853.5,5.39504]
[1743247822747,1.5314,1853.9,1853.4,5.39547]
[1743247822957,3.01857091,1853.7,1853.3,6.48497969]
[1743247823110,3.01857091,1853.6,1853.3,5.39573]
[1743247823418,4.54997091,1853.9,1853.5,5.39516]
[1743247823744,1.5314,1853.9,1853.5,5.39516]
[1743247824455,1.5314,1853.9,1853.4,5.39548]
[1743247824743,4.54997091,1853.9,1853.4,5.39548]
[1743247824905,4.54997091,1853.9,1853.5,5.39519]
[1743247825348,4.54997091,1853.9,1853.3,1.079163]
[1743247825349,4.54997091,1853.9,1853.3,11.870573]
[1743247825643,1.5314,1853.1,1852.4,5.39836]
[1743247825803,3.01857091,1852.9,1852.2,10.79775]
[1743247826006,1.5314,1852.4,1851.9,0.2820872]
[1743247826237,1.5314,1852.4,1852.1,5.39913]
[1743247826422,1.5314,1852.4,1852.0,0.05399226]
[1743247826622,1.5314,1852.4,1851.9,5.3998]
[1743247827137,1.5314,1852.4,1851.9,5.39981]
[1743247827308,1.5314,1852.4,1851.9,5.39985]
[1743247827508,1.5314,1852.4,1851.9,5.39982]
[1743247828009,1.5314,1852.4,1852.0,5.39955]
[1743247828233,1.5314,1852.4,1852.0,5.3994]
[1743247828609,1.5314,1852.4,1852.0,10.79882]
[1743247828937,1.5314,1852.4,1852.0,5.3994]
[1743247829140,3.44641341,1852.1,1851.0,1.623347]
[1743247829339,1.5314,1851.0,1850.3,5.63019364]
[1743247829552,3.44641341,1851.1,1849.8,5.40578]
[1743247829553,1.5314,1850.8,1849.8,5.40578]
[1743247829851,1.5314,1850.8,1849.9,0.540578]
[1743247829852,4.97781341,1850.8,1849.9,0.540578]
[1743247830064,3.44641341,1850.6,1849.9,0.540578]
[1743247830226,3.44641341,1850.2,1849.4,0.005]
[1743247830551,3.44641341,1850.0,1849.4,0.005]
[1743247830848,1.5314,1850.1,1849.6,5.40636]
[1743247831050,1.5314,1850.1,1849.6,10.81278]
[1743247831225,1.5314,1850.1,1849.6,5.40636]
[1743247832421,1.5314,1850.1,1849.6,5.947146]
[1743247832756,1.6192,1850.8,1850.5,5.40365]
[1743247832954,5.40104,1851.5,1850.8,5.40302]
[1743247832955,1.6192,1851.2,1850.8,5.40302]
[1743247833256,1.6192,1851.6,1851.0,5.40242]
[1743247833415,1.6192,1851.6,1850.9,5.40252]
[1743247833749,3.44641341,1851.5,1850.8,5.45702693]
[1743247833952,2.12576134,1851.6,1850.8,5.4029]
[1743247834125,3.44641341,1851.5,1850.8,5.4029]
[1743247834926,5.40127,1851.5,1850.6,5.40344]
[1743247835160,7.0209,1851.3,1850.2,4.5853]
[1743247835329,0.70209,1851.2,1850.5,5.40375]
[1743247835529,0.70209,1851.2,1850.5,5.45778332]
[1743247835753,0.70209,1851.2,1850.3,10.80872]
[1743247835957,0.70209,1851.2,1850.5,5.40376]
[1743247836162,6.10403,1851.2,1850.4,5.4041]
[1743247836463,6.012743,1851.1,1850.3,5.40426]
[1743247836663,9.70968674,1851.1,1850.3,5.40426]
[1743247836863,1.6192,1851.0,1850.1,5.40493]
[1743247837055,12.72194,1850.9,1850.1,5.40493]
[1743247837257,9.10010374,1850.8,1850.0,5.40533]
[1743247837458,0.91001037,1850.7,1850.1,5.4051]
[1743247837655,7.319,1850.9,1850.2,5.40454]
[1743247837970,7.319,1850.9,1850.3,5.40444]
[1743247838152,7.319,1850.9,1850.2,5.40454]
[1743247838465,7.319,1850.9,1850.0,10.81025]
[1743247838644,1.6192,1850.7,1850.0,5.40512]
[1743247838840,5.4043,1850.4,1849.6,5.40637]
[1743247839109,1.6192,1850.3,1849.7,5.40604]
[1743247839237,14.31685,1850.3,1849.6,5.40637]
[1743247839457,5.40487,1850.2,1849.5,5.40684]
[1743247839766,1.6192,1850.3,1849.6,5.40641]
[1743247839967,7.285,1850.1,1849.6,5.40641]
[1743247840269,1.6192,1850.0,1849.4,5.41193]
[1743247840641,1.6192,1850.0,1849.5,5.40681]
[1743247840966,1.6192,1850.0,1849.5,5.40671]
[1743247841209,1.6192,1850.7,1849.6,10.04573698]
[1743247841339,1.6192,1850.7,1850.3,5.4044]
[1743247842164,1.6192,1850.7,1850.3,5.94496]
[1743247842368,1.6192,1851.3,1850.6,5.4035]
[1743247842576,1.6192,1851.3,1850.9,5.40249]
[1743247842877,1.6192,1851.3,1850.9,5.40263]
[1743247843169,5.40233,1851.1,1850.4,5.40417]
[1743247843373,0.540233,1851.0,1850.4,5.40409]
[1743247843667,5.40212,1851.2,1850.5,5.40379]
[1743247843835,10.80419,1851.2,1850.4,5.40409]
[1743247844041,5.40228,1851.1,1850.4,10.80819]
[1743247844406,5.40207,1851.2,1850.4,5.40409]
[1743247844562,10.80412,1851.2,1850.5,5.40381]
[1743247844770,1.080412,1851.1,1850.5,5.40381]
[1743247845072,10.80427,1851.2,1850.4,5.40406]
[1743247845293,5.40225,1851.1,1850.4,5.40406]
[1743247845597,8.8732,1851.0,1850.4,5.40406]
[1743247845956,14.2758,1851.0,1850.3,5.40447]
[1743247846281,1.42758,1850.9,1850.4,5.40406]
[1743247846438,8.8732,1851.0,1850.6,5.40356]
[1743247846638,1.6192,1851.3,1850.9,5.40277]
[1743247846843,1.6192,1851.3,1850.9,5.40256]
[1743247847082,1.6192,1851.3,1851.1,5.40197]
[1743247847270,1.6192,1851.3,1850.6,5.45764785]
[1743247847271,1.6192,1851.3,1851.0,5.40244]
[1743247847465,1.6192,1851.3,1850.9,5.40253]
[1743247847701,1.6192,1851.3,1851.1,5.40207]
[1743247848250,1.6192,1851.3,1851.1,5.40205]
[1743247848581,1.6192,1851.3,1851.0,5.40232]
[1743247848582,1.6192,1851.3,1851.0,5.40243]
[1743247848783,1.6192,1851.3,1851.0,5.40229]
[1743247849196,1.6192,1851.3,1850.9,5.40275]
[1743247849355,1.6192,1851.3,1851.1,5.40218]
[1743247849784,1.6192,1851.3,1851.1,10.80425]
[1743247849973,1.6192,1851.3,1851.1,5.40207]
[1743247850178,1.6192,1851.3,1851.0,5.40243]
[1743247850581,1.6192,1851.3,1851.1,5.40212]
[1743247851770,1.6192,1851.3,1851.0,5.40248]
[1743247851971,1.6192,1851.3,1850.5,6.98902]
[1743247851972,1.6192,1851.3,1850.8,5.40285]
[1743247852171,1.6192,1851.3,1850.8,5.40289]
[1743247852384,1.6192,1851.3,1850.9,5.40265]
[1743247852583,1.6192,1851.3,1851.0,5.40231]
[1743247852783,1.6192,1851.3,1850.5,1.5853]
[1743247853047,1.6192,1851.3,1850.6,5.40365]
[1743247853198,1.6192,1851.3,1851.1,5.40193]
[1743247853401,1.6192,1851.3,1851.0,5.40242]
[1743247853572,1.6341,1851.6,1851.2,5.4019]
[1743247853901,1.6341,1851.6,1851.3,10.80308]
[1743247854208,1.6341,1852.1,1851.5,5.40102]
[1743247854410,1.6341,1852.1,1851.4,5.40122]
[1743247854411,7.03351,1852.1,1851.4,5.40122]
[1743247854611,0.703351,1852.0,1851.4,10.80244]
[1743247854795,0.703351,1852.0,1851.4,5.40122]
[1743247854994,6.103031,1852.0,1851.2,5.4019]
[1743247855211,6.103031,1852.0,1851.3,5.40144]
[1743247855399,5.39997,1851.9,1851.2,5.4017]
[1743247855589,0.539997,1851.8,1851.2,10.80344]
[1743247855785,0.539997,1851.8,1851.2,5.4017]
[1743247855976,0.539997,1851.8,1850.8,7.02161]
[1743247856181,0.539997,1851.8,1851.2,5.40161]
[1743247856609,0.539997,1851.8,1851.2,10.80328]
[1743247856929,1.6341,1852.1,1851.4,5.4012]
[1743247857106,1.6341,1852.1,1851.6,5.40046]
[1743247857283,1.6341,1852.1,1851.2,5.40187]
[1743247857284,7.03356,1852.1,1851.2,5.40163]
[1743247857478,5.39967,1852.0,1851.3,5.4015]
[1743247857683,5.39995,1851.9,1851.3,5.4015]
[1743247857978,0.539995,1851.8,1851.2,10.8034]
[1743247858197,1.6341,1852.1,1851.5,5.40097]
[1743247858528,1.6341,1852.1,1851.6,5.40055]
[1743247858822,1.6341,1852.1,1851.5,5.40101]
[1743247859526,1.6341,1852.5,1851.9,5.39969]
[1743247859682,7.03235,1852.5,1851.7,5.4003]
[1743247859883,0.703235,1852.4,1851.8,5.40007]
[1743247860106,0.703235,1852.4,1851.8,5.40002]
[1743247860319,0.703235,1852.4,1851.8,10.80004]
[1743247860526,0.703235,1852.4,1851.5,5.40088]
[1743247860527,5.39892,1852.3,1851.5,5.40088]
[1743247860727,1.6341,1852.2,1851.6,5.40052]
[1743247861030,1.6341,1852.2,1851.6,5.4006]
[1743247861178,1.6341,1852.2,1851.4,5.40118]
[1743247861179,5.39942,1852.1,1851.4,5.40118]
[1743247861378,9.09725374,1851.8,1850.8,1.6186]
[1743247861626,0.90972537,1851.7,1850.8,1.6186]
[1743247861789,3.69694374,1851.8,1851.2,5.40177]
[1743247862189,5.4006,1851.7,1851.0,5.40225]
[1743247862383,5.4006,1851.7,1850.9,5.40276]
[1743247862384,1.6341,1851.6,1850.9,5.40276]
[1743247862633,1.6341,1851.6,1851.0,5.4023]
[1743247862899,7.03498,1851.6,1850.9,5.40266]
[1743247863024,0.703498,1851.5,1850.9,10.80522]
[1743247863328,6.104528,1851.5,1850.9,5.40256]
[1743247863493,6.104538,1851.5,1850.3,5.40445]
[1743247863811,1.6555,1851.4,1850.8,5.40291]
[1743247864012,1.6555,1851.4,1850.9,5.40264]
[1743247864421,1.6555,1851.3,1850.3,5.40429]
[1743247864624,5.40328,1850.8,1850.1,5.40509]
[1743247864840,12.50228,1850.8,1850.1,10.81]
[1743247865017,12.50228,1850.8,1849.8,5.40585]
[1743247865018,9.055079,1850.8,1849.8,5.40585]
[1743247865193,5.4039,1850.6,1849.9,5.40566]
[1743247865393,5.40385,1850.6,1849.8,5.40584]
[1743247865710,1.6555,1850.5,1849.9,5.40557]
[1743247865912,7.05966,1850.5,1849.8,5.40584]
[1743247866126,7.05966,1850.5,1849.6,5.40628]
[1743247866127,5.40457,1850.3,1849.6,5.40628]
[1743247866328,1.6555,1850.2,1849.6,5.40628]
[1743247866908,7.06032,1850.2,1849.6,5.40628]
[1743247867155,7.06032,1850.2,1849.5,5.40683]
[1743247867427,5.35244374,1850.1,1849.4,0.005]
[1743247867598,7.06236,1849.5,1849.4,0.005]
[1743247867941,1.6555,1849.0,1847.9,1.6222]
[1743247868122,1.6555,1849.0,1848.4,1.625564]
[1743247868286,1.6555,1848.6,1848.4,1.625564]
[1743247868633,1.6555,1848.6,1848.2,5.41061]
[1743247868792,1.6555,1848.6,1848.4,10.81973]
[1743247868987,8.7685,1848.9,1848.4,5.35985]
[1743247869188,8.7685,1848.9,1848.2,5.41039]
[1743247869448,8.7685,1848.9,1848.1,5.41095]
[1743247869449,14.17732,1848.9,1848.1,5.41095]
[1743247869731,8.7685,1848.9,1848.2,5.41049]
[1743247869891,1.6555,1848.9,1848.4,10.81997]
[1743247870085,1.6555,1848.9,1848.6,5.40933]
[1743247870286,1.6555,1848.9,1848.3,1.6172]
[1743247870520,1.6555,1849.2,1848.7,5.40906]
[1743247870718,1.6555,1849.2,1848.5,5.40953]
[1743247870926,7.0634,1849.2,1848.4,5.41008]
[1743247871235,1.6555,1848.9,1847.9,0.005]
[1743247871438,1.6555,1848.9,1848.3,5.41009]
[1743247871641,7.06436,1848.9,1848.1,5.41074]
[1743247872265,1.6555,1848.9,1848.4,5.41002]
[1743247872546,1.6555,1848.9,1848.0,5.41096]
[1743247872712,7.06675,1848.0,1847.9,0.005]
[1743247872915,15.84421537,1848.0,1847.9,0.005]
[1743247873159,18.84421537,1848.0,1847.9,0.005]
[1743247873451,8.41682,1846.1,1844.5,1.6172]
[1743247873751,28.614,1846.7,1845.2,1.6172]
[1743247874090,5.41619,1846.4,1845.5,5.4183]
[1743247874370,3.0,1846.7,1845.8,0.05417363]
[1743247874579,1.6555,1846.6,1846.1,5.41682]
[1743247874723,0.8482,1846.9,1846.5,5.41565]
[1743247874933,0.8482,1846.9,1846.0,5.5267275]
[1743247874934,5.41479,1846.8,1846.0,5.5267275]
[1743247875134,0.541479,1846.7,1846.0,0.1097775]
[1743247875364,8.3082,1846.9,1846.0,0.1097775]
[1743247875573,1.6555,1846.7,1846.0,5.5268775]
[1743247875736,1.6555,1846.7,1846.0,5.5267275]
[1743247875926,1.6555,1846.7,1846.4,5.41593]
[1743247876133,1.6555,1846.7,1846.2,5.41634]
[1743247876665,1.6555,1846.7,1846.3,5.41615]
[1743247876866,1.6555,1846.7,1846.0,0.1097775]
[1743247876867,1.6555,1846.7,1846.4,5.41567]
[1743247877170,0.8482,1846.9,1846.8,5.41477]
[1743247878178,1.6555,1847.5,1847.3,5.41312]
[1743247878472,1.6555,1847.5,1847.2,5.41335]
[1743247878630,1.6555,1847.5,1846.8,5.41453]
[1743247878834,1.6555,1847.5,1847.0,5.41413]
[1743247879031,1.6555,1847.5,1847.2,5.41356]
[1743247879368,6.69694374,1848.0,1847.2,5.41356]
[1743247879369,1.6115,1847.9,1847.3,5.41326]
[1743247879571,2.51895,1847.9,1847.4,5.4128]
[1743247879874,11.45759587,1848.1,1847.4,5.41299]
[1743247880077,11.45759587,1848.1,1847.8,5.41166]
[1743247880372,11.45759587,1848.1,1847.9,5.41151]
[1743247880535,11.45759587,1848.1,1848.0,5.41125]
[1743247880932,11.45759587,1848.1,1847.7,5.41193]
[1743247881144,12.60335546,1848.1,1847.1,28.635]
[1743247881349,5.41132,1848.0,1847.2,5.41346]
[1743247881631,7.478,1847.9,1847.3,5.41327]
[1743247881849,12.88954,1847.9,1847.2,5.41346]
[1743247882067,1.6115,1847.8,1846.8,5.41474]
[1743247882376,7.02348,1847.8,1847.1,5.41387]
[1743247882861,1.6115,1847.8,1847.3,5.41301]
[1743247883050,1.6115,1847.8,1847.5,5.41255]
[1743247883254,1.6115,1847.8,1847.7,5.41213]
[1743247883559,7.478,1847.9,1847.6,5.41238]
[1743247883728,7.478,1847.9,1847.7,5.41196]
[1743247883936,1.6115,1848.2,1847.8,5.41184]
[1743247884128,1.6115,1848.2,1847.2,5.41357]
[1743247884129,1.6115,1848.2,1848.0,5.41102]
[1743247884359,1.6115,1848.5,1848.0,10.82214]
[1743247884556,2.51625,1848.5,1847.8,5.41168]
[1743247884755,2.51625,1848.5,1848.0,5.41101]
[1743247885031,2.51625,1848.5,1847.9,5.41128]
[1743247885246,5.40833,1849.0,1847.9,5.41128]
[1743247885247,5.36480753,1849.2,1849.1,5.40803]
[1743247885437,5.36480753,1849.2,1848.9,1.5694]
[1743247885657,5.36480753,1849.2,1848.9,5.40836]
[1743247885959,5.36480753,1849.2,1849.0,5.40814]
[1743247886482,5.36480753,1849.2,1848.9,5.40846]
[1743247886856,5.40864,1848.9,1848.0,5.41106]
[1743247887061,5.40864,1848.9,1848.2,5.41065]
[1743247887254,5.40892,1848.8,1848.1,5.41072]
[1743247887602,3.0,1849.0,1847.8,5.41184]
[1743247887788,9.1735,1849.1,1848.3,5.41031]
[1743247887789,1.6115,1849.1,1848.3,5.41031]
[1743247887993,2.35777883,1849.1,1848.2,9.1484]
[1743247888133,7.01957,1849.1,1848.4,5.40989]
[1743247888335,1.6115,1849.1,1848.7,5.40907]
[1743247888697,1.6115,1849.1,1848.6,5.40947]
[1743247888871,7.0196,1849.1,1848.4,5.41007]
[1743247889368,1.6115,1849.1,1848.5,5.40977]
[1743247889569,1.6115,1849.1,1848.7,5.40906]
[1743247889770,1.6115,1849.1,1848.6,5.40937]
[1743247889947,1.6115,1849.1,1848.6,5.40927]
[1743247890372,1.6115,1849.1,1848.8,5.40871]
[1743247890540,1.6115,1849.1,1848.7,5.40903]
[1743247890936,1.6115,1849.1,1848.6,5.40945]
[1743247891144,1.6115,1849.1,1848.7,5.40906]
[1743247891469,1.6115,1849.1,1848.2,6.97985]
[1743247891470,7.01973,1849.1,1848.2,6.97985]
[1743247891671,7.01973,1849.1,1848.2,5.41045]
[1743247891672,5.40905,1848.8,1848.2,5.41045]
[1743247891966,5.40938,1848.7,1848.0,5.41102]
[1743247892171,1.5033,1848.6,1848.0,5.41102]
[1743247892470,1.5033,1848.6,1847.7,5.4121]
[1743247892471,1.5033,1848.6,1848.3,5.41024]
[1743247892770,7.526,1848.9,1848.4,0.05409845]
[1743247893003,7.526,1848.9,1848.5,5.40957]
[1743247893133,1.6336,1849.0,1848.7,5.40915]
[1743247893466,1.6336,1849.0,1848.5,5.40959]
[1743247893867,1.6336,1849.0,1848.2,1.5161]
[1743247894088,5.40906,1848.8,1848.1,5.41072]
[1743247894377,5.40876,1848.9,1848.2,5.41042]
[1743247894540,1.6336,1849.0,1848.5,5.4096]
[1743247894735,1.6336,1849.0,1848.5,5.40965]
[1743247894936,1.6336,1849.0,1848.3,5.41014]
[1743247895137,5.40923,1848.7,1848.1,5.41081]
[1743247895342,5.4095,1848.6,1848.0,5.41114]
[1743247895538,5.950153,1848.7,1847.8,5.4118]
[1743247895539,1.6336,1848.4,1847.8,5.4118]
[1743247896197,1.6336,1848.4,1847.3,1.5161]
[1743247896198,5.41071,1848.2,1847.3,1.5161]
[1743247896343,12.88166,1848.3,1847.6,5.41226]
[1743247896551,10.82147,1848.2,1847.5,5.41253]
[1743247896763,5.41111,1848.1,1847.4,5.41301]
[1743247896952,7.04527,1847.9,1846.8,5.956084]
[1743247897156,12.923,1847.8,1847.0,5.41397]
[1743247897461,7.511,1847.8,1847.2,5.41358]
[1743247897659,12.92284,1847.8,1847.1,5.4136]
[1743247897863,7.511,1847.8,1846.8,5.41456]
[1743247898075,7.04519,1847.9,1846.8,5.41456]
[1743247898076,0.7511,1847.7,1847.2,5.41357]
[1743247898237,7.53,1847.8,1847.2,5.41349]
[1743247898576,1.6336,1847.9,1847.4,5.41298]
[1743247898990,0.48500829,1847.8,1847.2,5.41339]
[1743247899147,0.48500829,1847.8,1847.2,10.82679]
[1743247899491,0.48500829,1847.8,1847.3,5.41304]
[1743247899662,0.48500829,1847.8,1847.4,5.41281]
[1743247900365,0.48500829,1847.8,1847.4,5.41287]
[1743247900942,0.48500829,1847.8,1847.3,5.41314]
[1743247901142,1.6336,1849.9,1848.2,1.5161]
[1743247901344,5.40628,1849.7,1848.5,5.40951]
[1743247901592,7.04122,1849.3,1848.3,6.08]
[1743247901777,5.40775,1849.2,1848.3,5.41019]
[1743247902079,5.40775,1849.2,1848.4,5.40981]
[1743247902278,9.3496,1849.3,1848.1,34.04776]
[1743247902279,7.04208,1849.0,1848.1,34.04776]
[1743247902477,5.363026,1848.9,1848.2,5.41053]
[1743247902775,5.36005,1848.5,1847.8,5.4117]
[1743247902993,5.41043,1848.3,1847.6,10.82444]
[1743247903140,3.0,1848.4,1847.6,5.41216]
[1743247903346,5.71037,1848.3,1847.6,10.82438]
[1743247903676,1.6336,1848.2,1847.7,5.41202]
[1743247903865,1.6336,1848.7,1847.9,5.41154]
[1743247904066,1.6336,1848.7,1847.9,5.41137]
[1743247904240,1.6336,1848.7,1848.1,5.41083]
[1743247904444,2.56726,1848.7,1848.4,5.40988]
[1743247904647,7.04281,1848.7,1847.8,13.09071]
[1743247904872,7.04281,1848.7,1848.0,5.41122]
[1743247905084,5.41031,1848.4,1847.7,5.41205]
[1743247905379,1.6336,1848.3,1847.9,5.41141]
[1743247905795,1.6336,1848.3,1848.0,5.41104]
[1743247905951,7.682,1848.5,1848.1,5.4107]
[1743247906282,4.6336,1848.7,1848.1,5.4107]
[1743247906582,3.404364,1848.7,1848.1,5.46480247]
[1743247906796,5.40949,1848.6,1847.7,5.41188]
[1743247907079,6.404364,1848.7,1847.8,5.41167]
[1743247907282,5.41007,1848.5,1847.8,5.41167]
[1743247907483,10.81998,1848.5,1847.8,10.82337]
[1743247907684,6.492208,1848.4,1847.8,10.82338]
[1743247907899,1.081998,1848.4,1847.9,5.4115]
[1743247908102,6.404364,1848.7,1847.9,5.4115]
[1743247908103,5.40981,1848.5,1847.9,5.4115]
[1743247908270,5.41009,1848.4,1847.7,5.41194]
[1743247908598,5.41009,1848.4,1847.8,5.41177]
[1743247908800,5.41009,1848.4,1847.7,5.41192]
[1743247909118,5.41009,1848.4,1847.8,5.41171]
[1743247909300,5.41051,1848.3,1847.7,5.41192]
[1743247909473,1.5172,1848.2,1847.7,5.41192]
[1743247909673,1.5172,1848.2,1847.7,10.82392]
[1743247909874,1.5172,1848.2,1847.8,5.41182]
[1743247910697,1.5172,1848.2,1847.9,5.41142]
[1743247911320,1.5172,1848.2,1847.9,5.4114]
[1743247911477,1.5172,1848.2,1847.9,10.82282]
[1743247911985,1.5172,1848.2,1847.9,5.4114]
[1743247912233,1.5172,1848.2,1847.8,5.41178]
[1743247912386,1.5172,1848.2,1847.8,5.41159]
[1743247912580,1.5172,1848.2,1847.9,5.41136]
[1743247912784,1.5534,1848.5,1848.1,5.41083]
[1743247912985,1.5534,1848.5,1847.9,5.41149]